bitfinex/quotes_ETHUSD_20251120
["timestamp","ask_amount","ask_price","bid_price","bid_amount"]
[1763661702139,0.09989019,2824.2,2824.0,0.001]
[1763661702669,0.09989019,2824.3,2824.0,0.001]
[1763661702872,0.5,2824.8,2824.0,0.001]
[1763661702873,0.09989019,2824.5,2824.0,0.001]
[1763661703470,0.5,2824.4,2824.0,0.001]
[1763661703634,0.09989019,2824.5,2824.0,0.001]
[1763661704052,0.5,2824.4,2824.0,0.001]
[1763661704247,0.09989019,2824.1,2824.0,0.001]
[1763661704453,0.09989019,2824.3,2824.0,0.001]
[1763661704690,0.09989019,2824.1,2824.0,0.001]
[1763661705101,0.59989019,2824.1,2824.0,0.001]
[1763661706072,0.09989019,2824.1,2824.0,0.001]
[1763661706485,0.55568163,2824.2,2824.0,0.001]
[1763661706683,0.09989019,2824.1,2824.0,0.001]
[1763661707981,0.55568163,2824.2,2824.0,0.001]
[1763661708285,0.09989019,2824.1,2824.0,0.001]
[1763661708454,0.59989019,2824.1,2824.0,0.001]
[1763661708857,0.5,2824.1,2824.0,0.001]
[1763661709087,0.59989019,2824.1,2824.0,0.001]
[1763661709293,0.55568163,2824.2,2824.0,0.001]
[1763661709589,0.09989019,2824.1,2824.0,0.001]
[1763661710096,0.1867,2825.1,2824.0,0.001]
[1763661710097,0.55565408,2824.7,2824.0,0.001]
[1763661710276,0.09989019,2824.8,2824.0,0.001]
[1763661710482,0.09989019,2824.4,2824.0,0.001]
[1763661710670,0.09989019,2824.1,2824.0,0.001]
[1763661711356,0.59989019,2824.1,2824.0,0.001]
[1763661711591,0.1867,2825.1,2823.7,0.001]
[1763661711592,0.592204,2825.1,2823.7,0.001]
[1763661711792,0.59989019,2824.1,2823.7,0.001]
[1763661711971,0.09989019,2823.8,2823.7,0.001]
[1763661712410,0.1867,2825.1,2823.7,0.001]
[1763661712559,0.09989019,2824.7,2823.8,1.31249664]
[1763661712754,0.1867,2825.1,2823.8,1.31249664]
[1763661712954,0.09989019,2825.0,2824.0,0.405504]
[1763661713196,0.1867,2825.4,2824.0,0.405504]
[1763661713369,0.09989019,2824.8,2823.9,0.90252567]
[1763661713690,0.09989019,2824.8,2824.0,0.405504]
[1763661713899,0.5,2825.3,2823.8,0.405504]
[1763661714096,0.09989019,2824.5,2823.8,0.405504]
[1763661714293,0.09989019,2824.5,2823.7,0.001]
[1763661714462,0.09989019,2824.2,2823.7,0.001]
[1763661714769,1.25792046,2825.3,2823.7,0.1522]
[1763661714970,0.09989019,2824.3,2823.7,1.05472567]
[1763661715201,0.09989019,2824.3,2823.7,0.90352567]
[1763661716305,0.09989019,2824.6,2823.7,0.90352567]
[1763661716503,0.09989019,2824.4,2823.7,0.90352567]
[1763661716703,0.94469046,2825.4,2823.8,0.405504]
[1763661716903,0.8290645,2825.3,2824.1,0.405504]
[1763661717106,0.1867,2825.4,2824.1,1.31249664]
[1763661717107,0.28659019,2825.4,2824.1,1.31249664]
[1763661717304,0.55549822,2825.6,2824.6,1.31249664]
[1763661717529,0.09989019,2825.4,2824.6,1.31249664]
[1763661717827,0.55549822,2825.6,2824.6,1.31249664]
[1763661718133,0.09989019,2825.4,2824.3,0.405504]
[1763661718332,0.55549822,2825.6,2823.9,0.405504]
[1763661718333,0.09989019,2825.0,2823.9,0.405504]
[1763661718495,0.09989019,2825.4,2824.0,0.405504]
[1763661718696,0.09989019,2825.1,2824.2,0.405504]
[1763661719439,0.55549822,2825.6,2824.4,0.405504]
[1763661719808,0.09989019,2825.3,2824.1,0.79660641]
[1763661720024,0.09989019,2825.3,2824.4,0.405504]
[1763661720209,0.59989019,2825.3,2824.1,0.79660641]
[1763661720425,0.09989019,2824.6,2823.4,7.56156005]
[1763661720631,0.3291891,2825.2,2823.7,0.001]
[1763661720632,0.94365304,2824.9,2823.7,0.001]
[1763661720799,0.94365304,2824.5,2823.7,0.001]
[1763661721143,0.94365304,2824.5,2822.2,0.4992]
[1763661721144,0.94365304,2823.8,2821.7,0.13]
[1763661721348,0.09989019,2822.6,2821.7,0.13]
[1763661721542,1.08759817,2823.4,2822.0,0.90699264]
[1763661721693,0.3291891,2823.3,2822.0,0.90699264]
[1763661722042,0.5,2823.4,2822.0,0.90699264]
[1763661722043,0.09989019,2822.8,2822.0,0.90699264]
[1763661722239,0.09989019,2823.0,2821.7,0.13]
[1763661722394,0.32902391,2823.3,2821.2,0.001]
[1763661722395,0.09989019,2822.9,2821.2,0.001]
[1763661722599,0.09989019,2822.9,2821.6,0.4992]
[1763661722822,0.09989019,2822.9,2821.2,0.001]
[1763661722823,0.1867,2823.8,2822.4,7.56056005]
[1763661723074,0.59989019,2824.6,2823.0,1.31249664]
[1763661723217,0.09989019,2824.4,2823.5,1.31249664]
[1763661723423,0.09989019,2824.7,2823.7,0.405504]
[1763661723621,2.07400609,2825.8,2823.6,0.03541578]
[1763661723622,1.50418397,2826.1,2825.1,0.405504]
[1763661723935,0.32933639,2826.0,2825.8,1.31249664]
[1763661724115,0.002,2826.6,2825.0,0.1422]
[1763661724316,0.002,2826.6,2825.1,0.405504]
[1763661724317,0.09989019,2826.1,2825.1,0.405504]
[1763661724544,0.09989019,2826.1,2825.1,1.82182967]
[1763661724732,0.002,2826.6,2825.5,1.31249664]
[1763661724944,0.002,2826.6,2826.0,1.31249664]
[1763661725146,0.002,2826.6,2825.5,0.129]
[1763661725469,0.002,2826.6,2824.5,0.156]
[1763661725470,0.6867,2826.5,2824.5,0.156]
[1763661725619,0.09989019,2825.3,2824.4,0.405504]
[1763661725972,0.09989019,2826.0,2824.9,1.31249664]
[1763661726439,0.09989019,2825.3,2824.1,0.156]
[1763661726621,0.09989019,2825.2,2824.2,0.405504]
[1763661727058,0.09989019,2825.2,2824.1,0.285]
[1763661727260,0.32957363,2825.4,2824.3,0.90699264]
[1763661727428,0.9486384,2826.0,2824.1,0.129]
[1763661727429,0.32957363,2825.7,2824.1,0.129]
[1763661727631,0.09989019,2824.8,2824.1,0.129]
[1763661728125,0.09989019,2825.3,2824.1,0.129]
[1763661728323,0.09989019,2824.9,2824.2,0.405504]
[1763661728549,0.32957363,2825.5,2824.7,7.56056005]
[1763661728750,0.09989019,2826.1,2824.8,2.06855265]
[1763661728934,0.09989019,2826.1,2825.0,0.405504]
[1763661729120,0.09989019,2826.1,2825.2,0.405504]
[1763661729563,0.09989019,2826.4,2825.4,0.405504]
[1763661729763,0.002,2826.6,2825.8,7.56056005]
[1763661729947,0.002,2826.6,2826.4,1.31249664]
[1763661730462,0.002,2826.6,2826.4,1.80299664]
[1763661730666,0.002,2826.6,2826.4,1.31249664]
[1763661731167,0.002,2826.6,2826.4,0.405504]
[1763661731523,0.002,2826.6,2826.4,1.80299664]
[1763661731934,0.002,2826.6,2826.5,0.896004]
[1763661732374,0.002,2826.6,2826.5,0.405504]
[1763661732548,0.002,2826.6,2826.5,2.71811231]
[1763661732751,0.002,2826.6,2826.5,1.81111967]
[1763661733063,0.002,2826.6,2826.5,0.405504]
[1763661733433,0.002,2826.6,2826.5,0.896004]
[1763661733645,0.002,2826.6,2826.5,0.405504]
[1763661734220,0.002,2826.6,2826.3,0.129]
[1763661734763,0.002,2826.6,2826.4,0.405504]
[1763661735727,0.002,2826.6,2826.5,1.80299664]
[1763661735927,0.002,2826.6,2826.5,2.31721271]
[1763661736153,0.002,2826.6,2826.5,0.405504]
[1763661736869,0.002,2826.6,2826.5,1.80299664]
[1763661737161,0.002,2826.9,2826.6,0.405504]
[1763661737362,0.002,2826.9,2826.6,0.896004]
[1763661737538,0.002,2826.9,2826.8,0.405504]
[1763661737953,0.36704584,2830.1,2826.8,0.405504]
[1763661737954,0.6764,2828.8,2826.8,0.896004]
[1763661738159,0.09989019,2829.0,2828.0,1.31249664]
[1763661738349,0.1923,2829.2,2827.7,0.129]
[1763661738543,0.1923,2829.2,2827.1,0.405504]
[1763661738544,0.4897,2829.1,2827.1,0.405504]
[1763661738778,0.09989019,2827.7,2827.1,0.405504]
[1763661738946,0.09989019,2827.9,2827.1,0.405504]
[1763661739149,0.09989019,2828.3,2827.3,1.31249664]
[1763661739445,0.09989019,2828.0,2827.3,1.31249664]
[1763661739683,0.4897,2828.9,2827.3,2.11468025]
[1763661739891,0.4897,2828.9,2827.0,0.129]
[1763661740055,0.4897,2828.9,2827.1,0.405504]
[1763661740255,0.4897,2828.9,2827.5,1.31249664]
[1763661740474,0.09989019,2828.8,2828.0,1.31249664]
[1763661741152,0.09989019,2828.9,2828.0,1.31249664]
[1763661741499,0.09989019,2829.2,2828.5,1.31249664]
[1763661741670,0.4897,2829.4,2828.4,1.31249664]
[1763661741859,0.09989019,2829.3,2828.4,1.31249664]
[1763661742180,0.4897,2829.4,2828.0,0.76603361]
[1763661742181,0.09989019,2829.0,2828.2,0.405504]
[1763661742554,0.09989019,2829.0,2828.1,0.405504]
[1763661742757,0.09989019,2829.6,2828.4,1.31249664]
[1763661743083,0.10189019,2829.7,2828.4,1.31249664]
[1763661743289,0.002,2829.7,2828.9,1.31249664]
[1763661743587,0.002,2829.2,2829.1,0.405504]
[1763661744245,0.002,2829.2,2829.1,0.896004]
[1763661744480,0.002,2829.5,2829.1,1.08910366]
[1763661744651,0.002,2829.5,2829.4,1.31249664]
[1763661745271,0.002,2829.5,2829.4,1.44049664]
[1763661745600,0.002,2829.5,2829.4,1.93099664]
[1763661746167,0.002,2829.7,2829.5,0.405504]
[1763661746462,0.002,2829.7,2829.5,1.71098761]
[1763661746858,0.002,2830.0,2829.5,1.71098761]
[1763661746859,0.002,2830.0,2829.7,0.547704]
[1763661747064,0.002,2830.0,2829.9,7.53133611]
[1763661747511,0.002,2830.0,2829.9,8.02183611]
[1763661747803,0.4897,2832.2,2830.0,1.80299664]
[1763661747960,0.29219019,2832.3,2831.2,1.31249664]
[1763661748161,0.9486384,2833.9,2832.2,0.1525]
[1763661748162,0.1923,2833.2,2832.2,0.1525]
[1763661748357,0.1923,2833.2,2832.7,1.31249664]
[1763661748601,0.1923,2833.2,2832.3,0.128]
[1763661748602,0.682,2833.2,2832.3,0.533504]
[1763661748770,0.09989019,2833.0,2832.3,0.128]
[1763661748996,0.09989019,2833.0,2832.4,0.405504]
[1763661749500,0.4897,2833.1,2832.5,0.405504]
[1763661749704,0.4897,2833.6,2832.7,1.31249664]
[1763661749998,0.65378698,2833.3,2832.7,1.31249664]
[1763661750299,0.55389679,2833.3,2832.7,1.31249664]
[1763661751006,0.09989019,2832.8,2831.8,0.405504]
[1763661751217,0.56899019,2832.8,2831.9,0.128]
[1763661751394,0.56899019,2832.8,2830.9,6.21883947]
[1763661751395,0.1977,2832.0,2830.9,6.21883947]
[1763661751870,0.09989019,2832.3,2831.1,0.405504]
[1763661752277,0.09989019,2832.3,2831.1,1.15863761]
[1763661752465,0.1977,2832.7,2831.5,1.31249664]
[1763661752665,0.1977,2832.7,2831.7,0.405504]
[1763661752875,0.09989019,2832.9,2832.1,0.405504]
[1763661753079,0.4691,2832.9,2832.1,0.405504]
[1763661753304,0.4691,2832.9,2831.8,0.405504]
[1763661753518,0.29759019,2833.1,2831.8,0.59010406]
[1763661753737,0.76669019,2833.1,2831.8,0.59010406]
[1763661753913,0.6668,2833.1,2831.8,0.405504]
[1763661754219,0.55389679,2833.3,2832.1,1.31249664]
[1763661754579,0.55389679,2833.3,2832.6,1.31249664]
[1763661754779,0.56899019,2834.1,2832.8,0.405504]
[1763661755026,0.55381032,2833.6,2832.8,0.405504]
[1763661755715,0.09989019,2833.2,2832.2,0.405504]
[1763661755881,0.09989019,2833.2,2832.2,1.31249664]
[1763661756213,0.6668,2833.1,2832.2,1.31249664]
[1763661756781,0.09989019,2833.2,2832.2,2.07843025]
[1763661756989,0.55381032,2833.6,2832.4,0.405504]
[1763661757221,0.55381032,2833.6,2832.3,0.4968]
[1763661757222,0.4691,2833.5,2832.3,0.405504]
[1763661757389,0.65370051,2833.6,2832.3,0.902304]
[1763661757793,0.4691,2833.5,2832.2,0.90699264]
[1763661757992,0.4691,2833.5,2831.6,0.1525]
[1763661757993,0.09989019,2832.9,2831.6,0.1525]
[1763661758180,0.09989019,2832.9,2831.4,6.21883947]
[1763661758181,0.09989019,2832.7,2831.7,0.128]
[1763661758381,0.09989019,2832.5,2831.3,0.128]
[1763661758621,0.09989019,2831.9,2831.3,0.128]
[1763661759067,0.09989019,2831.6,2830.7,0.128]
[1763661759939,0.6503,2831.8,2830.7,0.128]
[1763661759940,0.09989019,2832.0,2831.0,0.90699264]
[1763661760132,0.459,2832.3,2831.0,0.90699264]
[1763661760133,0.09989019,2832.2,2831.0,1.61957585]
[1763661760415,0.09989019,2832.2,2831.1,0.405504]
[1763661760601,0.09989019,2832.1,2831.1,0.405504]
[1763661760939,0.09989019,2832.1,2831.0,0.90699264]
[1763661761213,0.459,2832.3,2831.1,0.405504]
[1763661761582,0.1913,2832.8,2831.5,1.31249664]
[1763661761785,0.459,2832.7,2831.5,1.44049664]
[1763661762020,0.09989019,2832.5,2831.5,1.44049664]
[1763661762193,0.459,2832.7,2831.5,1.44049664]
[1763661762194,0.09989019,2832.6,2831.5,1.44049664]
[1763661762384,0.459,2832.7,2831.5,1.44049664]
[1763661762787,0.09989019,2832.4,2831.5,1.31249664]
[1763661763019,0.459,2832.7,2831.0,0.128]
[1763661763222,0.459,2832.6,2831.2,0.405504]
[1763661763424,0.09989019,2831.9,2831.2,0.405504]
[1763661763580,0.459,2832.4,2831.2,0.405504]
[1763661763786,0.09989019,2832.0,2831.2,0.405504]
[1763661763981,0.459,2832.4,2830.5,6.21883947]
[1763661764286,0.09989019,2831.4,2830.6,1.03499264]
[1763661764819,0.09989019,2831.4,2830.6,0.128]
[1763661765017,0.459,2831.6,2830.6,0.128]
[1763661765404,0.09989019,2831.4,2830.6,0.128]
[1763661765591,0.09989019,2831.4,2830.7,0.405504]
[1763661765793,0.459,2831.4,2830.6,0.128]
[1763661766023,0.459,2831.4,2830.3,0.001]
[1763661766508,0.09989019,2830.4,2830.3,0.001]
[1763661766824,0.90699264,2831.2,2830.0,0.001]
[1763661767120,0.09989019,2829.8,2829.7,0.001]
[1763661767322,0.55889019,2829.8,2829.7,0.001]
[1763661767493,0.459,2829.8,2829.7,0.001]
[1763661767699,0.55889019,2829.8,2829.7,0.001]
[1763661767895,0.55889019,2829.8,2827.1,0.1525]
[1763661768232,0.09989019,2829.1,2827.8,6.69093947]
[1763661768384,0.1913,2829.0,2827.8,6.21883947]
[1763661768586,0.1913,2829.0,2826.8,0.1525]
[1763661768587,0.1913,2827.9,2826.8,0.1525]
[1763661768902,0.1913,2827.9,2826.4,6.49933947]
[1763661769103,0.1913,2827.9,2826.5,0.90699264]
[1763661769104,0.09989019,2827.4,2826.5,0.90699264]
[1763661769330,0.09989019,2827.6,2826.6,0.74063321]
[1763661769483,0.09989019,2827.4,2826.4,6.49933947]
[1763661770017,0.09989019,2827.4,2826.5,0.90699264]
[1763661770231,0.09989019,2827.4,2826.4,6.49933947]
[1763661770397,0.09989019,2827.1,2826.4,6.34683947]
[1763661770734,0.09989019,2827.1,2826.4,0.128]
[1763661770886,0.1913,2827.9,2825.9,6.21883947]
[1763661770887,0.459,2827.0,2825.9,6.21883947]
[1763661771084,0.459,2827.0,2825.5,6.21883947]
[1763661771393,0.459,2827.0,2825.6,0.66909395]
[1763661771602,0.459,2827.5,2826.0,6.21883947]
[1763661771803,0.459,2827.5,2826.1,1.31249664]
[1763661772022,0.459,2827.5,2826.1,1.45469664]
[1763661772405,0.09989019,2827.0,2826.1,1.45469664]
[1763661772625,0.1913,2827.9,2826.6,1.31249664]
[1763661772841,0.6503,2827.9,2826.6,1.31249664]
[1763661773139,0.09989019,2827.5,2826.6,1.31249664]
[1763661773294,0.6503,2827.9,2826.6,1.31249664]
[1763661773494,0.09989019,2827.6,2826.6,1.31249664]
[1763661773711,0.09989019,2827.6,2826.8,0.405504]
[1763661773932,0.09989019,2827.4,2826.8,0.405504]
[1763661774141,0.09989019,2827.4,2826.7,0.405504]
[1763661774342,0.09989019,2827.7,2826.7,0.405504]
[1763661774521,0.1913,2827.9,2826.8,0.128]
[1763661774839,0.09989019,2827.9,2827.1,1.31249664]
[1763661774997,0.09989019,2828.2,2827.1,2.06563025]
[1763661775197,0.459,2828.7,2827.6,1.31249664]
[1763661775470,0.459,2828.7,2827.8,0.405504]
[1763661775471,0.09989019,2828.7,2827.8,0.405504]
[1763661776175,0.09989019,2828.7,2827.7,0.405504]
[1763661776327,0.09989019,2828.4,2827.7,0.405504]
[1763661776528,0.09989019,2828.4,2827.7,1.17143761]
[1763661776975,0.09989019,2829.1,2828.1,1.31249664]
[1763661777127,0.459,2829.1,2828.1,0.405504]
[1763661777329,0.459,2829.1,2827.8,0.405504]
[1763661777527,0.09989019,2828.6,2827.8,0.405504]
[1763661777762,0.09989019,2828.6,2827.8,0.62614703]
[1763661777964,0.09989019,2828.6,2827.7,0.76593361]
[1763661777965,0.09989019,2828.3,2827.7,0.405504]
[1763661778163,0.09989019,2828.0,2827.7,0.405504]
[1763661778330,0.09989019,2828.0,2827.6,0.128]
[1763661778531,0.1913,2828.2,2827.6,0.128]
[1763661778756,0.1913,2828.2,2827.7,0.405504]
[1763661778757,0.09989019,2828.2,2827.7,0.405504]
[1763661780336,0.459,2828.1,2827.7,0.405504]
[1763661780567,0.6547026,2828.5,2827.7,0.405504]
[1763661780937,0.6547026,2828.5,2827.1,0.90699264]
[1763661780938,0.29119019,2827.8,2827.1,0.90699264]
[1763661781130,0.09989019,2827.8,2827.0,6.21883947]
[1763661781431,0.459,2828.4,2827.4,0.405504]
[1763661781432,0.1913,2828.1,2827.4,0.405504]
[1763661781866,0.459,2828.0,2826.9,0.405504]
[1763661782169,0.09989019,2827.6,2826.9,0.405504]
[1763661782354,0.459,2828.0,2826.9,0.405504]
[1763661782700,0.09989019,2828.2,2827.1,1.31249664]
[1763661783020,0.09989019,2828.2,2827.2,0.75313361]
[1763661783288,0.09989019,2827.8,2826.9,0.405504]
[1763661783588,0.55481241,2828.5,2826.9,0.405504]
[1763661783589,0.55481241,2828.5,2827.0,6.69093947]
[1763661783750,0.09989019,2828.4,2827.6,1.31249664]
[1763661783951,1.01381241,2828.5,2827.6,1.31249664]
[1763661784163,0.09989019,2828.1,2827.6,1.31249664]
[1763661784369,0.09989019,2828.4,2827.8,0.405504]
[1763661784564,0.09989019,2828.4,2827.7,0.75313361]
[1763661784565,0.1913,2827.7,2825.2,0.3549]
[1763661784772,0.1913,2827.7,2824.7,4.14926484]
[1763661784773,0.09989019,2827.5,2826.2,0.5991]
[1763661785088,0.1913,2827.7,2826.6,6.21883947]
[1763661785295,0.1913,2828.0,2826.8,0.405504]
[1763661785476,0.09989019,2827.9,2826.8,0.405504]
[1763661785680,0.09989019,2827.9,2827.2,1.31249664]
[1763661785880,0.1913,2829.2,2827.4,0.405504]
[1763661785881,0.09989019,2828.5,2827.4,0.405504]
[1763661786209,0.459,2828.8,2827.2,1.03399264]
[1763661786210,0.55889019,2829.1,2827.7,1.31249664]
[1763661786376,0.459,2829.1,2827.9,0.405504]
[1763661786563,0.459,2829.1,2826.3,0.69601395]
[1763661786564,0.09989019,2828.8,2826.9,0.405504]
[1763661786767,0.459,2829.1,2826.3,0.69601395]
[1763661786768,0.09989019,2827.6,2826.3,0.69601395]
[1763661787070,0.09989019,2827.1,2826.3,0.69601395]
[1763661787266,0.459,2827.7,2826.1,6.21883947]
[1763661787466,0.09989019,2827.3,2826.2,0.90699264]
[1763661787704,0.29119019,2827.8,2826.7,0.90699264]
[1763661787900,0.1913,2827.8,2826.8,0.405504]
[1763661788201,0.55496246,2827.9,2826.8,0.877604]
[1763661788367,0.55496246,2827.9,2826.9,0.19115966]
[1763661788568,0.55496246,2827.9,2827.2,1.31249664]
[1763661788769,0.55496246,2827.9,2827.2,0.405504]
[1763661788770,0.58659019,2827.9,2827.2,0.405504]
[1763661788965,0.58659019,2827.9,2825.8,0.1815]
[1763661788966,0.55492753,2827.8,2826.4,0.03538069]
[1763661789203,0.55492753,2827.8,2825.9,1.03399264]
[1763661789406,0.55492753,2827.8,2826.0,0.80720321]
[1763661789407,0.4867,2827.7,2826.0,0.80720321]
[1763661789607,0.09989019,2826.8,2826.0,0.80720321]
[1763661790008,0.55492753,2827.8,2826.0,0.80720321]
[1763661790009,0.09989019,2826.5,2826.0,0.80720321]
[1763661790194,0.55492753,2827.8,2826.1,0.03538445]
[1763661790195,0.1967,2827.2,2826.1,0.03538445]
[1763661790395,0.09989019,2826.8,2825.9,0.127]
[1763661790707,0.1967,2827.2,2825.4,0.4965]
[1763661790708,0.4867,2827.1,2825.4,0.4965]
[1763661791074,0.09989019,2826.8,2825.7,0.405504]
[1763661791273,0.09989019,2826.8,2825.6,0.4965]
[1763661791503,0.4867,2827.1,2825.6,0.4965]
[1763661791714,0.09989019,2826.6,2825.7,0.405504]
[1763661791912,0.4867,2827.1,2825.7,0.405504]
[1763661792211,0.09989019,2826.6,2825.6,0.001]
[1763661792418,0.09989019,2826.6,2825.7,0.405504]
[1763661792776,0.09989019,2826.9,2825.6,0.001]
[1763661793095,0.4867,2826.9,2825.8,0.405504]
[1763661793294,0.09989019,2826.4,2825.6,0.001]
[1763661793609,0.09989019,2826.3,2825.6,0.001]
[1763661793812,0.4867,2826.9,2825.6,0.001]
[1763661794026,0.29659019,2827.2,2826.3,6.21883947]
[1763661794237,0.4867,2828.4,2827.2,0.405504]
[1763661794422,0.1913,2829.2,2827.6,1.31249664]
[1763661794423,0.09989019,2828.8,2827.6,1.31249664]
[1763661794621,0.09989019,2828.8,2827.2,0.6225]
[1763661794622,0.09989019,2828.9,2828.1,1.31249664]
[1763661794823,0.9317567,2829.7,2828.1,1.31249664]
[1763661794824,0.002,2829.7,2828.6,1.31249664]
[1763661794998,0.002,2829.7,2828.8,0.405504]
[1763661795400,0.002,2829.7,2828.2,1.31249664]
[1763661795401,0.09989019,2829.3,2828.2,1.31249664]
[1763661795640,0.09989019,2828.9,2828.2,0.405504]
[1763661795935,0.09989019,2828.9,2828.1,0.405504]
[1763661796136,0.09989019,2828.6,2828.1,0.405504]
[1763661796344,0.4867,2828.8,2827.5,0.405504]
[1763661796345,0.09989019,2828.2,2827.5,0.405504]
[1763661796705,0.09989019,2828.3,2827.5,0.405504]
[1763661797226,0.09989019,2828.1,2827.5,0.405504]
[1763661797429,0.09989019,2828.6,2827.7,1.31249664]
[1763661797731,0.55482966,2828.0,2827.4,0.127]
[1763661797965,0.55482966,2828.0,2826.4,0.62188395]
[1763661797966,0.32963577,2827.9,2826.5,0.127]
[1763661798143,0.09989019,2827.4,2826.6,0.001]
[1763661798528,0.09989019,2827.2,2826.6,0.001]
[1763661799033,2.4370664,2827.9,2826.6,0.001]
[1763661799034,0.09989019,2827.7,2826.6,0.001]
[1763661799199,0.7556467,2827.8,2826.6,0.001]
[1763661799200,0.7556467,2827.9,2826.8,0.90699264]
[1763661799402,0.09989019,2828.1,2826.9,1.24942676]
[1763661799617,0.55493517,2828.2,2827.3,1.31249664]
[1763661799801,0.55493517,2828.2,2827.5,0.405504]
[1763661800218,0.55493517,2828.2,2827.3,0.127]
[1763661800219,0.09989019,2828.1,2827.3,0.127]
[1763661800430,0.09989019,2827.9,2827.3,0.127]
[1763661800747,0.09989019,2828.4,2827.4,0.563304]
[1763661801045,1.4164567,2828.7,2827.4,0.563304]
[1763661801046,1.18923721,2828.6,2827.4,0.563304]
[1763661801265,0.09989019,2828.6,2827.4,0.563304]
[1763661801538,0.09989019,2828.6,2827.5,0.405504]
[1763661802046,0.32967763,2828.9,2827.7,1.31249664]
[1763661802047,1.08928424,2828.9,2827.7,1.31249664]
[1763661802351,0.09989019,2828.9,2827.9,0.405504]
[1763661802850,0.09989019,2828.8,2827.9,0.405504]
[1763661803264,0.002,2829.0,2827.9,0.405504]
[1763661803416,0.002,2829.0,2828.3,0.405504]
[1763661803755,0.09989019,2828.7,2828.3,0.405504]
[1763661803911,0.55471911,2828.8,2828.3,0.405504]
[1763661804246,0.4867,2828.7,2827.0,8.02773498]
[1763661804430,0.4867,2828.7,2827.3,0.127]
[1763661804431,0.09989019,2828.1,2827.3,0.127]
[1763661804813,0.4867,2828.0,2826.4,0.4965]
[1763661805012,0.4867,2828.0,2826.4,0.001]
[1763661805013,0.09989019,2827.2,2826.4,0.001]
[1763661805536,0.1967,2827.1,2826.4,0.001]
[1763661805718,0.09989019,2826.8,2826.4,0.001]
[1763661806110,0.09989019,2827.3,2826.4,0.001]
[1763661806417,1.54259336,2827.4,2826.4,0.001]
[1763661806611,0.09989019,2827.4,2826.4,0.001]
[1763661806816,1.25820406,2828.0,2826.7,1.40249264]
[1763661806817,0.4867,2828.0,2826.7,1.40249264]
[1763661807147,1.25820406,2828.5,2826.8,0.405504]
[1763661807148,0.32962667,2828.1,2826.8,0.405504]
[1763661807353,1.1264567,2828.6,2827.2,1.31249664]
[1763661807549,0.55471911,2828.8,2827.7,1.31249664]
[1763661807713,0.81630763,2828.7,2827.4,0.405504]
[1763661807914,0.4867,2828.7,2827.4,0.405504]
[1763661808113,0.09989019,2828.6,2827.4,0.405504]
[1763661808757,0.09989019,2828.3,2827.4,0.405504]
[1763661809470,0.55471911,2828.8,2827.7,7.53223498]
[1763661809669,0.4792,2828.7,2827.8,1.1587275]
[1763661809972,0.55471911,2828.8,2827.5,0.405504]
[1763661810132,0.002,2829.0,2828.7,0.1511]
[1763661810328,0.002,2829.3,2829.1,0.405504]
[1763661810741,0.002,2829.3,2828.8,0.127]
[1763661810971,0.002,2829.3,2828.9,0.405504]
[1763661811560,0.4792,2829.2,2827.9,7.53223498]
[1763661811876,0.4792,2829.2,2827.9,8.41245848]
[1763661812074,0.09989019,2828.9,2828.0,0.90699264]
[1763661812573,0.09989019,2828.9,2828.1,0.405504]
[1763661812754,0.09989019,2828.9,2828.0,0.90699264]
[1763661812994,0.4792,2829.2,2828.0,0.90699264]
[1763661813153,0.4792,2829.2,2828.1,1.33744911]
[1763661813564,0.09989019,2829.0,2828.1,1.33744911]
[1763661814571,0.002,2829.3,2828.1,1.33744911]
[1763661814572,0.002,2829.3,2828.5,1.31249664]
[1763661814757,0.002,2829.3,2829.0,1.31249664]
[1763661815070,1.1196567,2830.7,2829.0,1.31249664]
[1763661815071,0.4792,2831.3,2829.0,1.31249664]
[1763661815270,0.4792,2831.3,2829.9,8.84473162]
[1763661815437,0.4792,2831.3,2829.9,8.97173162]
[1763661815633,0.9297567,2832.2,2830.0,0.90699264]
[1763661815831,2.52565032,2833.1,2830.0,0.90699264]
[1763661815832,0.4792,2831.9,2830.0,1.31249664]
[1763661816384,0.1967,2832.0,2830.9,1.31249664]
[1763661816579,0.09989019,2831.9,2831.1,0.405504]
[1763661817345,0.4792,2831.9,2831.1,0.405504]
[1763661817542,0.4792,2831.9,2830.4,1.31249664]
[1763661817543,0.09989019,2831.6,2830.4,1.31249664]
[1763661818396,0.4896,2831.5,2830.4,1.31249664]
[1763661818573,0.09989019,2831.3,2830.4,1.31249664]
[1763661818747,0.09989019,2831.6,2830.4,2.2096698]
[1763661819285,0.6883,2832.0,2830.4,2.2096698]
[1763661819490,0.09989019,2831.3,2830.4,0.90699264]
[1763661819787,0.09989019,2831.3,2829.8,1.03399264]
[1763661819788,0.09989019,2831.0,2829.8,1.03399264]
[1763661820091,0.09989019,2831.0,2829.7,7.53223498]
[1763661820092,0.58949019,2831.0,2829.9,0.127]
[1763661820247,0.09989019,2830.8,2829.9,0.127]
[1763661820444,0.09989019,2830.8,2830.0,0.405504]
[1763661821160,0.58949019,2830.8,2829.9,0.127]
[1763661821358,0.09989019,2830.4,2829.3,0.127]
[1763661821668,0.4896,2830.8,2829.4,0.405504]
[1763661821885,0.09989019,2830.2,2829.3,0.127]
[1763661822087,0.09989019,2830.2,2829.3,1.03399264]
[1763661822254,0.09989019,2830.2,2829.4,0.405504]
[1763661822850,0.09989019,2830.2,2829.2,7.53223498]
[1763661823050,0.09989019,2830.2,2827.5,0.001]
[1763661823051,0.09989019,2829.6,2827.6,0.17459323]
[1763661823375,0.09989019,2829.2,2828.1,7.53223498]
[1763661823590,0.09989019,2829.0,2828.1,7.53223498]
[1763661823746,0.1963,2829.5,2827.7,0.127]
[1763661823747,0.09989019,2828.7,2827.7,0.127]
[1763661824093,0.1963,2829.5,2827.5,0.001]
[1763661824094,0.4896,2829.4,2827.5,0.001]
[1763661824327,0.1963,2828.6,2827.5,0.001]
[1763661824527,0.09989019,2828.3,2827.5,0.001]